[Event "*** Titled Tuesday Blitz"]
[Site "Chess.com"]
[Date "2018.06.05"]
[Round "4"]
[White "Korchmar_Vasiliy"]
[Black "Matibar"]
[Result "0-1"]
[WhiteElo "2702"]
[BlackElo "2686"]
[TimeControl "180+2"]
[EndTime "13:58:21 PDT"]
[Termination "Matibar won by resignation"]

1. d4 {[%clk 0:03:00.5]} 1... d5 {[%clk 0:02:59.8]} 2. Nf3 {[%clk 0:03:01.8]}
2... Bf5 {[%clk 0:03:00.1]} 3. Bf4 {[%clk 0:03:01.6]} 3... e6 {[%clk 0:03:00.3]}
4. e3 {[%clk 0:03:02.7]} 4... Bd6 {[%clk 0:03:01.3]} 5. Bg3 {[%clk 0:03:01.8]}
5... Ne7 {[%clk 0:03:01]} 6. Bd3 {[%clk 0:03:02.4]} 6... O-O {[%clk 0:03:01.9]}
7. Nc3 {[%clk 0:02:54.9]} 7... Bxd3 {[%clk 0:02:54.7]} 8. cxd3 {[%clk
0:02:52.2]} 8... Nf5 {[%clk 0:02:55.6]} 9. O-O {[%clk 0:02:50.8]} 9... Nxg3
{[%clk 0:02:53.9]} 10. hxg3 {[%clk 0:02:52.7]} 10... c6 {[%clk 0:02:43.1]} 11.
Rc1 {[%clk 0:02:51.8]} 11... Nd7 {[%clk 0:02:43.7]} 12. e4 {[%clk 0:02:46]}
12... f5 {[%clk 0:02:30.9]} 13. Qe2 {[%clk 0:02:28.7]} 13... Kh8 {[%clk
0:02:30.1]} 14. Rfe1 {[%clk 0:02:15]} 14... Nb6 {[%clk 0:02:03.9]} 15. Nh4
{[%clk 0:01:53.5]} 15... Qg5 {[%clk 0:02:01.3]} 16. e5 {[%clk 0:01:43.7]} 16...
Be7 {[%clk 0:02:00.4]} 17. Nf3 {[%clk 0:01:02.3]} 17... Qh6 {[%clk 0:02:01.2]}
18. a3 {[%clk 0:00:55]} 18... a5 {[%clk 0:02:00.6]} 19. Qc2 {[%clk 0:00:50.8]}
19... a4 {[%clk 0:01:53.5]} 20. Rb1 {[%clk 0:00:48.4]} 20... Ra6 {[%clk
0:01:34]} 21. b3 {[%clk 0:00:49.2]} 21... axb3 {[%clk 0:01:34.8]} 22. Rxb3
{[%clk 0:00:51.1]} 22... Rfa8 {[%clk 0:01:33.7]} 23. Reb1 {[%clk 0:00:47.2]}
23... Bd8 {[%clk 0:01:33.4]} 24. a4 {[%clk 0:00:39.7]} 24... Qh5 {[%clk
0:01:23.8]} 25. a5 {[%clk 0:00:35.1]} 25... Rxa5 {[%clk 0:01:24]} 26. Rxb6
{[%clk 0:00:36.2]} 26... Bxb6 {[%clk 0:01:25.9]} 27. Rxb6 {[%clk 0:00:38.1]}
27... Ra1+ {[%clk 0:01:27.4]} 28. Rb1 {[%clk 0:00:37.8]} 28... h6 {[%clk
0:01:22.4]} 29. Qc1 {[%clk 0:00:37.7]} 29... R1a7 {[%clk 0:01:21.5]} 30. Ne2
{[%clk 0:00:37.6]} 30... Qf7 {[%clk 0:01:21.3]} 31. Nf4 {[%clk 0:00:34.6]} 31...
g5 {[%clk 0:01:22]} 32. Ne2 {[%clk 0:00:35.8]} 32... Kh7 {[%clk 0:01:21.9]} 33.
Qc5 {[%clk 0:00:28.1]} 33... Ra1 {[%clk 0:01:17.4]} 34. Qc1 {[%clk 0:00:25.5]}
34... R1a2 {[%clk 0:01:18.6]} 35. Nc3 {[%clk 0:00:20.6]} 35... R2a3 {[%clk
0:01:18.6]} 36. Qd2 {[%clk 0:00:13]} 36... Kg6 {[%clk 0:01:17.7]} 37. Nd1 {[%clk
0:00:11.5]} 37... Ra2 {[%clk 0:01:16.7]} 38. Rb2 {[%clk 0:00:09.6]} 38... Ra1
{[%clk 0:01:17.6]} 39. Kh2 {[%clk 0:00:10.7]} 39... Kh7 {[%clk 0:01:02.9]} 40.
Qc2 {[%clk 0:00:11.5]} 40... R8a7 {[%clk 0:01:00.3]} 41. Rb1 {[%clk 0:00:09.9]}
41... R7a2 {[%clk 0:00:57.6]} 42. Qc1 {[%clk 0:00:11.2]} 42... Rxb1 {[%clk
0:00:53.3]} 43. Qxb1 {[%clk 0:00:13.1]} 43... Ra6 {[%clk 0:00:53.4]} 44. Qb4
{[%clk 0:00:13.3]} 44... Ra1 {[%clk 0:00:48.4]} 45. Qb3 {[%clk 0:00:09]} 45...
b5 {[%clk 0:00:46.6]} 46. Qc2 {[%clk 0:00:07]} 46... b4 {[%clk 0:00:45.9]} 47.
Nd2 {[%clk 0:00:07.6]} 47... Qh5+ {[%clk 0:00:45.9]} 0-1

[Event "*** Titled Tuesday Blitz"]
[Site "Chess.com"]
[Date "2018.06.05"]
[Round "4"]
[White "attack2mateU"]
[Black "Ravan_02"]
[Result "1-0"]
[WhiteElo "2687"]
[BlackElo "2480"]
[TimeControl "180+2"]
[EndTime "13:58:22 PDT"]
[Termination "attack2mateU won by resignation"]

1. e4 {[%clk 0:03:01.9]} 1... e6 {[%clk 0:02:57.1]} 2. d4 {[%clk 0:03:02.1]}
2... d5 {[%clk 0:02:58.1]} 3. Nc3 {[%clk 0:03:03.6]} 3... Nf6 {[%clk 0:02:58.7]}
4. e5 {[%clk 0:03:04.3]} 4... Nfd7 {[%clk 0:02:59.6]} 5. f4 {[%clk 0:03:05.2]}
5... c5 {[%clk 0:03:00.4]} 6. Nf3 {[%clk 0:03:06.3]} 6... Nc6 {[%clk 0:03:01.4]}
7. Be3 {[%clk 0:03:07]} 7... cxd4 {[%clk 0:03:00.7]} 8. Nxd4 {[%clk 0:03:06.9]}
8... Bc5 {[%clk 0:03:02.1]} 9. Qd2 {[%clk 0:03:06.6]} 9... O-O {[%clk
0:03:01.4]} 10. O-O-O {[%clk 0:03:06]} 10... a6 {[%clk 0:03:02.4]} 11. h4 {[%clk
0:03:01.5]} 11... Nxd4 {[%clk 0:03:02.4]} 12. Bxd4 {[%clk 0:03:02.1]} 12... b5
{[%clk 0:03:03.5]} 13. h5 {[%clk 0:02:28.5]} 13... b4 {[%clk 0:02:59.4]} 14. Na4
{[%clk 0:02:27.1]} 14... Bxd4 {[%clk 0:02:57.4]} 15. Qxd4 {[%clk 0:02:29]} 15...
Qa5 {[%clk 0:02:57.7]} 16. b3 {[%clk 0:02:28.7]} 16... Bb7 {[%clk 0:02:58.7]}
17. Kb1 {[%clk 0:02:25]} 17... Bc6 {[%clk 0:02:58.2]} 18. Nb2 {[%clk 0:02:25.1]}
18... Bb5 {[%clk 0:02:44.6]} 19. f5 {[%clk 0:02:08.6]} 19... Rfc8 {[%clk
0:01:48.4]} 20. f6 {[%clk 0:01:47.4]} 20... Qc7 {[%clk 0:01:47]} 21. Nc4 {[%clk
0:01:00.3]} 21... Qc5 {[%clk 0:00:20.7]} 22. Qxc5 {[%clk 0:00:51]} 22... Rxc5
{[%clk 0:00:20.7]} 23. Nd6 {[%clk 0:00:33.1]} 23... Nxe5 {[%clk 0:00:19.5]} 24.
fxg7 {[%clk 0:00:32.3]} 24... Ng4 {[%clk 0:00:18.7]} 25. Bxb5 {[%clk 0:00:20.9]}
25... axb5 {[%clk 0:00:17.8]} 26. Rd4 {[%clk 0:00:21.6]} 26... Nf2 {[%clk
0:00:06.5]} 27. Rf1 {[%clk 0:00:20.3]} 27... Ne4 {[%clk 0:00:07.6]} 28. Nxe4
{[%clk 0:00:18.8]} 28... dxe4 {[%clk 0:00:09.4]} 29. h6 {[%clk 0:00:20.1]} 29...
Rh5 {[%clk 0:00:07.7]} 30. Rd7 {[%clk 0:00:15.9]} 30... Rxh6 {[%clk 0:00:04.5]}
31. Rdxf7 {[%clk 0:00:10.1]} 31... e3 {[%clk 0:00:03.9]} 32. Rf8+ {[%clk
0:00:11]} 32... Kxg7 {[%clk 0:00:05.2]} 33. Rxa8 {[%clk 0:00:12.2]} 33... e2
{[%clk 0:00:07.1]} 34. Re1 {[%clk 0:00:13.6]} 34... Rf6 {[%clk 0:00:06.9]} 35.
Rxe2 {[%clk 0:00:14.7]} 35... Rf1+ {[%clk 0:00:08]} 36. Kb2 {[%clk 0:00:16.2]}
36... Kf7 {[%clk 0:00:09.6]} 37. Rb8 {[%clk 0:00:17.2]} 37... Kf6 {[%clk
0:00:10.9]} 38. Rxb5 {[%clk 0:00:18.5]} 38... h5 {[%clk 0:00:12.3]} 39. Rxb4
{[%clk 0:00:19.8]} 39... Rg1 {[%clk 0:00:13.5]} 40. Rbe4 {[%clk 0:00:20.1]}
40... h4 {[%clk 0:00:15.3]} 41. Rxe6+ {[%clk 0:00:21.5]} 41... Kg5 {[%clk
0:00:16.8]} 42. R6e3 {[%clk 0:00:23.1]} 42... Kf4 {[%clk 0:00:17.8]} 43. a4
{[%clk 0:00:24.7]} 43... Kg4 {[%clk 0:00:18.8]} 44. a5 {[%clk 0:00:25.8]} 44...
h3 {[%clk 0:00:20]} 45. gxh3+ {[%clk 0:00:26.3]} 45... Kh4 {[%clk 0:00:21.3]}
46. a6 {[%clk 0:00:27.7]} 46... Rg8 {[%clk 0:00:21.5]} 47. Re8 {[%clk
0:00:28.1]} 47... Rg6 {[%clk 0:00:22.3]} 48. a7 {[%clk 0:00:28.9]} 1-0

[Event "*** Titled Tuesday Blitz"]
[Site "Chess.com"]
[Date "2018.06.05"]
[Round "4"]
[White "Shaman91"]
[Black "MartinZumsande"]
[Result "0-1"]
[WhiteElo "2555"]
[BlackElo "2530"]
[TimeControl "180+2"]
[EndTime "13:58:22 PDT"]
[Termination "MartinZumsande won by resignation"]

1. e4 {[%clk 0:03:01.9]} 1... e6 {[%clk 0:03:00.6]} 2. d4 {[%clk 0:03:02.1]}
2... d5 {[%clk 0:03:01.6]} 3. Nc3 {[%clk 0:03:03.4]} 3... Nf6 {[%clk 0:03:02.5]}
4. e5 {[%clk 0:03:04.6]} 4... Nfd7 {[%clk 0:03:03.3]} 5. Nce2 {[%clk 0:03:06]}
5... c5 {[%clk 0:03:04.3]} 6. c3 {[%clk 0:03:07.4]} 6... Nc6 {[%clk 0:03:05.1]}
7. Nf3 {[%clk 0:03:08.8]} 7... Qb6 {[%clk 0:03:05.8]} 8. a3 {[%clk 0:03:08.3]}
8... a5 {[%clk 0:03:02.1]} 9. h4 {[%clk 0:03:06.7]} 9... a4 {[%clk 0:03:02.3]}
10. Nf4 {[%clk 0:02:44.5]} 10... Ra7 {[%clk 0:02:57]} 11. Ng5 {[%clk 0:02:38.3]}
11... cxd4 {[%clk 0:02:47.1]} 12. cxd4 {[%clk 0:02:26.8]} 12... Qxd4 {[%clk
0:02:46]} 13. Bd3 {[%clk 0:02:23.2]} 13... Qxe5+ {[%clk 0:02:28.2]} 14. Ne2
{[%clk 0:02:22.2]} 14... Bc5 {[%clk 0:02:15]} 15. O-O {[%clk 0:02:20.3]} 15...
h6 {[%clk 0:02:06.6]} 16. Nf3 {[%clk 0:02:19.7]} 16... Qf6 {[%clk 0:02:06.2]}
17. Nf4 {[%clk 0:02:15.3]} 17... Nde5 {[%clk 0:01:42.6]} 18. Nxe5 {[%clk
0:02:06.7]} 18... Nxe5 {[%clk 0:01:43.6]} 19. Bb5+ {[%clk 0:01:19.9]} 19... Bd7
{[%clk 0:01:41]} 20. Nxd5 {[%clk 0:01:15.7]} 20... exd5 {[%clk 0:01:33.1]} 21.
Qxd5 {[%clk 0:01:17.5]} 21... Bxb5 {[%clk 0:01:01.3]} 22. Qxc5 {[%clk
0:01:16.2]} 22... Bxf1 {[%clk 0:00:57.4]} 23. Qxa7 {[%clk 0:01:16.2]} 23... O-O
{[%clk 0:00:41.1]} 24. Kxf1 {[%clk 0:01:13]} 24... Qxh4 {[%clk 0:00:42.6]} 25.
Kg1 {[%clk 0:01:07.6]} 25... Rd8 {[%clk 0:00:36]} 26. Be3 {[%clk 0:01:04.1]}
26... Ng4 {[%clk 0:00:33.8]} 27. Bf4 {[%clk 0:01:02.4]} 27... Qf6 {[%clk
0:00:21.4]} 28. Qxa4 {[%clk 0:00:57.1]} 28... Qxb2 {[%clk 0:00:15.6]} 29. Rf1
{[%clk 0:00:55.4]} 29... Qf6 {[%clk 0:00:14.5]} 30. Bc7 {[%clk 0:00:50.4]} 30...
Rc8 {[%clk 0:00:15.2]} 31. Bg3 {[%clk 0:00:50.9]} 31... Ne5 {[%clk 0:00:15.8]}
32. Qb5 {[%clk 0:00:51.9]} 32... Ng6 {[%clk 0:00:14]} 33. Qxb7 {[%clk
0:00:51.3]} 33... Rc2 {[%clk 0:00:15]} 34. a4 {[%clk 0:00:47.6]} 34... Rb2
{[%clk 0:00:14.6]} 35. Qc8+ {[%clk 0:00:40.8]} 35... Kh7 {[%clk 0:00:15.9]} 36.
Rc1 {[%clk 0:00:38]} 36... Ra2 {[%clk 0:00:17.1]} 37. Qc4 {[%clk 0:00:36.7]}
37... Qb2 {[%clk 0:00:16.7]} 38. Re1 {[%clk 0:00:33.9]} 38... Ra1 {[%clk
0:00:17.9]} 39. Rxa1 {[%clk 0:00:33.2]} 39... Qxa1+ {[%clk 0:00:19.8]} 40. Kh2
{[%clk 0:00:35.1]} 40... f5 {[%clk 0:00:20.5]} 41. f3 {[%clk 0:00:26.7]} 41...
Qf6 {[%clk 0:00:20.2]} 42. Qc5 {[%clk 0:00:23.7]} 42... f4 {[%clk 0:00:21.1]}
43. Bf2 {[%clk 0:00:24.6]} 43... Ne5 {[%clk 0:00:22]} 44. Qd5 {[%clk 0:00:22.6]}
44... Qf5 {[%clk 0:00:20.7]} 45. a5 {[%clk 0:00:21.3]} 45... Ng4+ {[%clk
0:00:20.8]} 0-1

[Event "*** Titled Tuesday Blitz"]
[Site "Chess.com"]
[Date "2018.06.05"]
[Round "4"]
[White "Zaven_ChessMood"]
[Black "SantoBlue"]
[Result "1-0"]
[WhiteElo "2874"]
[BlackElo "2793"]
[TimeControl "180+2"]
[EndTime "13:58:26 PDT"]
[Termination "Zaven_ChessMood won by resignation"]

1. e4 {[%clk 0:03:01.9]} 1... e5 {[%clk 0:02:57.1]} 2. Nf3 {[%clk 0:03:02.7]}
2... Nc6 {[%clk 0:02:57.9]} 3. Bc4 {[%clk 0:03:04.3]} 3... Nf6 {[%clk
0:02:53.7]} 4. d3 {[%clk 0:03:05.3]} 4... Bc5 {[%clk 0:02:54.4]} 5. c3 {[%clk
0:03:06.6]} 5... O-O {[%clk 0:02:52.7]} 6. O-O {[%clk 0:03:07.5]} 6... d5 {[%clk
0:02:51]} 7. exd5 {[%clk 0:03:08]} 7... Nxd5 {[%clk 0:02:52.9]} 8. a4 {[%clk
0:03:09.2]} 8... Bg4 {[%clk 0:02:50.2]} 9. h3 {[%clk 0:03:03.9]} 9... Bh5 {[%clk
0:02:49.4]} 10. Nbd2 {[%clk 0:03:02.6]} 10... a5 {[%clk 0:02:35.3]} 11. Ne4
{[%clk 0:03:02.3]} 11... Be7 {[%clk 0:02:31.9]} 12. Ng3 {[%clk 0:03:00.8]} 12...
Bg6 {[%clk 0:02:31.3]} 13. Re1 {[%clk 0:03:00.1]} 13... Nb6 {[%clk 0:02:32.3]}
14. Bb5 {[%clk 0:02:57.3]} 14... Bd6 {[%clk 0:02:33.5]} 15. Bg5 {[%clk
0:02:49.1]} 15... f6 {[%clk 0:02:25.7]} 16. Be3 {[%clk 0:02:49.4]} 16... Nd5
{[%clk 0:02:22.9]} 17. Bd2 {[%clk 0:02:37.4]} 17... Bc5 {[%clk 0:01:51]} 18. Nh4
{[%clk 0:02:33.5]} 18... Bf7 {[%clk 0:01:45.5]} 19. Nhf5 {[%clk 0:02:32.1]}
19... Nde7 {[%clk 0:01:35]} 20. Qg4 {[%clk 0:02:28.5]} 20... Nxf5 {[%clk
0:01:33.4]} 21. Nxf5 {[%clk 0:02:28.8]} 21... Bg6 {[%clk 0:01:34.4]} 22. Rad1
{[%clk 0:02:11.9]} 22... Kh8 {[%clk 0:01:17.7]} 23. Nh4 {[%clk 0:01:57.7]} 23...
Bf7 {[%clk 0:01:16.1]} 24. Bc1 {[%clk 0:01:46.5]} 24... Qc8 {[%clk 0:01:07.5]}
25. Qf3 {[%clk 0:01:40.9]} 25... Qd7 {[%clk 0:01:03.9]} 26. d4 {[%clk
0:01:38.7]} 26... exd4 {[%clk 0:00:57.4]} 27. cxd4 {[%clk 0:01:38.1]} 27... Bb4
{[%clk 0:00:46.5]} 28. d5 {[%clk 0:01:38.3]} 28... Bxe1 {[%clk 0:00:47.5]} 29.
dxc6 {[%clk 0:01:37.7]} 29... Qe6 {[%clk 0:00:36.2]} 30. cxb7 {[%clk 0:01:35.7]}
30... Rab8 {[%clk 0:00:37.1]} 31. Be3 {[%clk 0:01:32]} 31... Bb4 {[%clk
0:00:20]} 32. Ba7 {[%clk 0:01:30.3]} 32... Bd6 {[%clk 0:00:15.5]} 33. Bxb8
{[%clk 0:01:29.5]} 33... Rxb8 {[%clk 0:00:17.4]} 34. Nf5 {[%clk 0:01:28.5]}
34... Be5 {[%clk 0:00:17.5]} 35. Bc6 {[%clk 0:01:23.7]} 35... Bxb2 {[%clk
0:00:14.1]} 36. Bd5 {[%clk 0:01:21.2]} 36... Qd7 {[%clk 0:00:10.1]} 37. Bxf7
{[%clk 0:01:16.7]} 37... Qxf7 {[%clk 0:00:12]} 38. Qc6 {[%clk 0:01:15.3]} 38...
h5 {[%clk 0:00:05]} 39. Rd7 {[%clk 0:01:06.5]} 39... Qe8 {[%clk 0:00:06.3]} 40.
g3 {[%clk 0:00:48.9]} 40... Rxb7 {[%clk 0:00:06.1]} 41. Nxg7 {[%clk 0:00:42]}
41... Rb6 {[%clk 0:00:03.9]} 42. Qd5 {[%clk 0:00:39.3]} 42... Qe5 {[%clk
0:00:04.8]} 43. Qa8+ {[%clk 0:00:33.4]} 43... Kh7 {[%clk 0:00:04.9]} 44. Nf5+
{[%clk 0:00:28.2]} 44... Kg6 {[%clk 0:00:06.1]} 45. Nh4+ {[%clk 0:00:29.3]} 1-0

[Event "*** Titled Tuesday Blitz"]
[Site "Chess.com"]
[Date "2018.06.05"]
[Round "4"]
[White "Man-Chuk"]
[Black "Tash_Boy"]
[Result "1-0"]
[WhiteElo "2622"]
[BlackElo "2691"]
[TimeControl "180+2"]
[EndTime "13:58:29 PDT"]
[Termination "Man-Chuk won by checkmate"]

1. d4 {[%clk 0:03:01.1]} 1... Nf6 {[%clk 0:03:00.1]} 2. c4 {[%clk 0:03:01.9]}
2... g6 {[%clk 0:03:01.3]} 3. Nc3 {[%clk 0:03:00.9]} 3... Bg7 {[%clk 0:03:02.8]}
4. e4 {[%clk 0:03:01.6]} 4... d6 {[%clk 0:03:03.2]} 5. Nf3 {[%clk 0:03:02.5]}
5... O-O {[%clk 0:03:04.2]} 6. Be2 {[%clk 0:03:04]} 6... e5 {[%clk 0:03:05.1]}
7. O-O {[%clk 0:03:04.6]} 7... Nc6 {[%clk 0:03:06.5]} 8. Be3 {[%clk 0:03:04]}
8... Ng4 {[%clk 0:03:05]} 9. Bg5 {[%clk 0:03:04.4]} 9... f6 {[%clk 0:03:06]} 10.
Bh4 {[%clk 0:03:05.5]} 10... h5 {[%clk 0:03:06.7]} 11. h3 {[%clk 0:03:00.1]}
11... Nh6 {[%clk 0:03:06.6]} 12. Bg3 {[%clk 0:02:57.8]} 12... Bd7 {[%clk
0:02:51.8]} 13. c5 {[%clk 0:02:45.4]} 13... Nf7 {[%clk 0:02:51.4]} 14. cxd6
{[%clk 0:02:36.9]} 14... cxd6 {[%clk 0:02:50.7]} 15. Nd5 {[%clk 0:02:30.4]}
15... f5 {[%clk 0:02:36.4]} 16. exf5 {[%clk 0:02:25]} 16... gxf5 {[%clk
0:02:36.9]} 17. Bh4 {[%clk 0:02:21.7]} 17... Qa5 {[%clk 0:02:10.4]} 18. dxe5
{[%clk 0:02:21.5]} 18... Nfxe5 {[%clk 0:01:59.9]} 19. Nxe5 {[%clk 0:02:18.2]}
19... Nxe5 {[%clk 0:01:48.4]} 20. Ne7+ {[%clk 0:01:52.6]} 20... Kh7 {[%clk
0:01:47.4]} 21. Bxh5 {[%clk 0:01:48.9]} 21... Bf6 {[%clk 0:01:11.1]} 22. b4
{[%clk 0:00:54.2]} 22... Qb5 {[%clk 0:01:04.5]} 23. Bxf6 {[%clk 0:00:50.5]}
23... Rxf6 {[%clk 0:01:04.7]} 24. Nd5 {[%clk 0:00:50.6]} 24... Rh6 {[%clk
0:01:03.3]} 25. Nc7 {[%clk 0:00:49.7]} 25... Qxb4 {[%clk 0:00:59.8]} 26. Nxa8
{[%clk 0:00:49.9]} 26... Ba4 {[%clk 0:00:57.6]} 27. Qb1 {[%clk 0:00:46.4]} 27...
Qxb1 {[%clk 0:00:46.7]} 28. Raxb1 {[%clk 0:00:46.5]} 28... Rxh5 {[%clk
0:00:42.5]} 29. Rxb7+ {[%clk 0:00:47.1]} 29... Kh6 {[%clk 0:00:43.3]} 30. Rxa7
{[%clk 0:00:47.2]} 30... Bc6 {[%clk 0:00:43.4]} 31. f3 {[%clk 0:00:47.2]} 31...
f4 {[%clk 0:00:38.8]} 32. Nc7 {[%clk 0:00:43.1]} 32... Rg5 {[%clk 0:00:34.1]}
33. Ne6 {[%clk 0:00:43.7]} 33... Rg8 {[%clk 0:00:33.9]} 34. Nd4 {[%clk
0:00:40.5]} 34... Bd5 {[%clk 0:00:32.7]} 35. Ra6 {[%clk 0:00:34.2]} 35... Nc4
{[%clk 0:00:32.7]} 36. Re1 {[%clk 0:00:26.9]} 36... Kh5 {[%clk 0:00:29.2]} 37.
Kh2 {[%clk 0:00:15.2]} 37... Ne3 {[%clk 0:00:19.4]} 38. Rxe3 {[%clk 0:00:16]}
38... fxe3 {[%clk 0:00:21]} 39. Rxd6 {[%clk 0:00:16.8]} 39... Rg5 {[%clk
0:00:21.3]} 40. a4 {[%clk 0:00:13.9]} 40... Re5 {[%clk 0:00:21.6]} 41. Ne2
{[%clk 0:00:12.8]} 41... Bc4 {[%clk 0:00:21.4]} 42. Ng3+ {[%clk 0:00:13.7]}
42... Kg5 {[%clk 0:00:21.9]} 43. h4+ {[%clk 0:00:14.6]} 43... Kf4 {[%clk
0:00:21.8]} 44. Rd4+ {[%clk 0:00:15.4]} 44... Re4 {[%clk 0:00:19.9]} 45. Rxe4#
{[%clk 0:00:16.6]} 1-0

[Event "*** Titled Tuesday Blitz"]
[Site "Chess.com"]
[Date "2018.06.05"]
[Round "4"]
[White "PawnEatingZombie"]
[Black "chesstatour"]
[Result "1/2-1/2"]
[WhiteElo "2037"]
[BlackElo "2049"]
[TimeControl "180+2"]
[EndTime "13:58:33 PDT"]
[Termination "Game drawn by agreement"]

1. d4 {[%clk 0:03:01.9]} 1... f5 {[%clk 0:02:57.2]} 2. Nc3 {[%clk 0:03:01.4]}
2... Nf6 {[%clk 0:02:55.2]} 3. Bg5 {[%clk 0:03:01.8]} 3... d5 {[%clk 0:02:53.9]}
4. Bxf6 {[%clk 0:03:02.1]} 4... exf6 {[%clk 0:02:54.9]} 5. e3 {[%clk 0:03:03.7]}
5... Be6 {[%clk 0:02:54.5]} 6. Qf3 {[%clk 0:03:04.9]} 6... a6 {[%clk 0:02:39.6]}
7. Bd3 {[%clk 0:03:04.6]} 7... g6 {[%clk 0:02:40]} 8. Nge2 {[%clk 0:03:04.5]}
8... Bb4 {[%clk 0:02:29]} 9. O-O-O {[%clk 0:02:58.6]} 9... Bxc3 {[%clk
0:02:20.5]} 10. Nxc3 {[%clk 0:02:58.4]} 10... Nc6 {[%clk 0:02:18]} 11. h3 {[%clk
0:02:45.8]} 11... Qd6 {[%clk 0:02:00.2]} 12. g4 {[%clk 0:02:45]} 12... Ne7
{[%clk 0:02:01.2]} 13. Ne2 {[%clk 0:02:38.7]} 13... O-O-O {[%clk 0:01:43.7]} 14.
Nf4 {[%clk 0:02:39.2]} 14... Bd7 {[%clk 0:01:38.7]} 15. Kb1 {[%clk 0:02:21.5]}
15... Kb8 {[%clk 0:01:26.1]} 16. Rc1 {[%clk 0:02:22.1]} 16... c5 {[%clk
0:01:02]} 17. dxc5 {[%clk 0:02:19.4]} 17... Qxc5 {[%clk 0:01:00.2]} 18. Ne2
{[%clk 0:02:20.8]} 18... Bb5 {[%clk 0:00:50.9]} 19. gxf5 {[%clk 0:02:14.3]}
19... Bxd3 {[%clk 0:00:48.2]} 20. cxd3 {[%clk 0:02:14.5]} 20... Qb5 {[%clk
0:00:42.3]} 21. Nd4 {[%clk 0:02:07.1]} 21... Qxd3+ {[%clk 0:00:42.7]} 22. Ka1
{[%clk 0:02:08.6]} 22... Nxf5 {[%clk 0:00:40.4]} 23. Nxf5 {[%clk 0:02:05.8]}
23... Qxf5 {[%clk 0:00:39.8]} 24. Qxf5 {[%clk 0:02:05.8]} 24... gxf5 {[%clk
0:00:41.7]} 25. Rhg1 {[%clk 0:02:01.3]} 25... Rhg8 {[%clk 0:00:40.5]} 26. Kb1
{[%clk 0:01:56.1]} 26... Rg6 {[%clk 0:00:29.9]} 27. h4 {[%clk 0:01:31]} 27...
Rg4 {[%clk 0:00:22.3]} 28. h5 {[%clk 0:01:21.8]} 28... Rg5 {[%clk 0:00:20.4]}
29. h6 {[%clk 0:01:18.7]} 29... Rdg8 {[%clk 0:00:16.2]} 30. Rgd1 {[%clk
0:01:18.9]} 30... f4 {[%clk 0:00:12.1]} 31. exf4 {[%clk 0:01:18.5]} 31... Rf5
{[%clk 0:00:13.2]} 32. Re1 {[%clk 0:01:15.8]} 32... Rg6 {[%clk 0:00:13]} 33. Re7
{[%clk 0:01:16.3]} 33... d4 {[%clk 0:00:07]} 34. Rcc7 {[%clk 0:01:16.5]} 34...
Rb5 {[%clk 0:00:07.4]} 35. Rxh7 {[%clk 0:01:15.5]} 35... Rg2 {[%clk 0:00:07.2]}
36. Kc2 {[%clk 0:01:12.1]} 36... Rxf2+ {[%clk 0:00:08.3]} 37. Kd3 {[%clk
0:01:13]} 37... Rb4 {[%clk 0:00:08.6]} 38. Rhg7 {[%clk 0:00:49.3]} 38... Rxf4
{[%clk 0:00:08]} 39. h7 {[%clk 0:00:49.8]} 39... Rf3+ {[%clk 0:00:06.8]} 40. Ke4
{[%clk 0:00:49.7]} 40... Rh3 {[%clk 0:00:07.5]} 41. Rcd7 {[%clk 0:00:48.1]}
41... d3+ {[%clk 0:00:08.3]} 42. Kf5 {[%clk 0:00:48.7]} 42... Ka7 {[%clk
0:00:07.8]} 43. Rg8 {[%clk 0:00:48.6]} 43... Rb5+ {[%clk 0:00:07.2]} 44. Kg4
{[%clk 0:00:44.8]} 44... Rbh5 {[%clk 0:00:07.6]} 45. Rgg7 {[%clk 0:00:42.9]}
45... d2 {[%clk 0:00:07.9]} 46. Rxb7+ {[%clk 0:00:42.7]} 46... Ka8 {[%clk
0:00:09.2]} 47. Ra7+ {[%clk 0:00:42.4]} 47... Kb8 {[%clk 0:00:10.2]} 48. Rgb7+
{[%clk 0:00:38.4]} 48... Kc8 {[%clk 0:00:11.1]} 49. Rc7+ {[%clk 0:00:39.2]}
49... Kb8 {[%clk 0:00:12.1]} 50. Rcb7+ {[%clk 0:00:34]} 50... Kc8 {[%clk
0:00:12.6]} 51. Rc7+ {[%clk 0:00:34.7]} 51... Kb8 {[%clk 0:00:13.8]} 1/2-1/2